[Event "Early-Titled-Tuesday-Blitz-April-16-2024"]
[Site "Chess.com"]
[Date "2024.04.16"]
[Round "9"]
[White "Zarinur"]
[Black "Kushch_Nikolai"]
[Result "1-0"]
[WhiteElo "2508"]
[BlackElo "2365"]
[TimeControl "180+1"]
[EndTime "9:50:07 PDT"]
[Termination "Zarinur won by resignation"]

1. e4 {[%clk 0:03:00.9]} 1... c5 {[%clk 0:02:59]} 2. Nf3 {[%clk 0:03:00.5]} 2...
e6 {[%clk 0:02:59.1]} 3. c3 {[%clk 0:03:00.1]} 3... d5 {[%clk 0:02:58.4]} 4.
exd5 {[%clk 0:02:59.7]} 4... exd5 {[%clk 0:02:58.2]} 5. d4 {[%clk 0:02:58.8]}
5... Nc6 {[%clk 0:02:58.2]} 6. Bb5 {[%clk 0:02:56.1]} 6... Bd6 {[%clk
0:02:57.3]} 7. dxc5 {[%clk 0:02:55.3]} 7... Bxc5 {[%clk 0:02:56.2]} 8. O-O
{[%clk 0:02:55.9]} 8... Ne7 {[%clk 0:02:55.4]} 9. Nbd2 {[%clk 0:02:56.4]} 9...
O-O {[%clk 0:02:55.3]} 10. Nb3 {[%clk 0:02:56.4]} 10... Bd6 {[%clk 0:02:55.6]}
11. Bg5 {[%clk 0:02:46.7]} 11... Qc7 {[%clk 0:02:50.4]} 12. Bh4 {[%clk
0:02:43.4]} 12... Ng6 {[%clk 0:02:46.5]} 13. Bg3 {[%clk 0:02:43]} 13... Be6
{[%clk 0:02:43.4]} 14. Nbd4 {[%clk 0:02:39.8]} 14... Nce7 {[%clk 0:02:32.5]} 15.
Re1 {[%clk 0:02:35.6]} 15... Bg4 {[%clk 0:02:28.8]} 16. Bf1 {[%clk 0:02:28.1]}
16... a6 {[%clk 0:02:27.4]} 17. Qd2 {[%clk 0:02:22.6]} 17... Rad8 {[%clk
0:02:24.3]} 18. Qg5 {[%clk 0:02:17.3]} 18... Bc8 {[%clk 0:02:16.1]} 19. Bxd6
{[%clk 0:02:13.4]} 19... Rxd6 {[%clk 0:02:10.9]} 20. h4 {[%clk 0:02:13.5]} 20...
h6 {[%clk 0:02:08.8]} 21. Qe3 {[%clk 0:02:07.3]} 21... Nf5 {[%clk 0:02:03.1]}
22. Nxf5 {[%clk 0:02:06.1]} 22... Bxf5 {[%clk 0:02:02.9]} 23. Nd4 {[%clk
0:02:05.1]} 23... Bd7 {[%clk 0:02:01.3]} 24. Qg3 {[%clk 0:02:00.8]} 24... Rd8
{[%clk 0:01:42.1]} 25. h5 {[%clk 0:01:55.9]} 25... Nf8 {[%clk 0:01:42.3]} 26.
Re7 {[%clk 0:01:56.4]} 26... Qb6 {[%clk 0:01:33.2]} 27. Rb1 {[%clk 0:01:36.8]}
27... Rf6 {[%clk 0:01:33]} 28. Bd3 {[%clk 0:01:28.9]} 28... Be6 {[%clk
0:01:25.2]} 29. Qc7 {[%clk 0:01:22.6]} 29... Qxc7 {[%clk 0:01:22.5]} 30. Rxc7
{[%clk 0:01:23.5]} 30... Rd7 {[%clk 0:01:20.7]} 31. Nxe6 {[%clk 0:01:08.6]}
31... fxe6 {[%clk 0:01:17.1]} 32. Rxd7 {[%clk 0:01:03.5]} 32... Nxd7 {[%clk
0:01:16.4]} 33. Re1 {[%clk 0:01:02.6]} 33... Kf7 {[%clk 0:01:15.5]} 34. Bg6+
{[%clk 0:01:01.2]} 34... Ke7 {[%clk 0:01:15.6]} 35. f3 {[%clk 0:01:01.4]} 35...
Kd6 {[%clk 0:01:15.7]} 36. Kf2 {[%clk 0:01:00.6]} 36... Ne5 {[%clk 0:01:14.9]}
37. Bc2 {[%clk 0:01:00.4]} 37... Nc4 {[%clk 0:01:14.2]} 38. b3 {[%clk
0:01:00.5]} 38... Ne5 {[%clk 0:01:10.9]} 39. Ke3 {[%clk 0:00:58.4]} 39... b5
{[%clk 0:01:09.8]} 40. Rd1 {[%clk 0:00:57.9]} 40... Nc6 {[%clk 0:01:07.7]} 41.
c4 {[%clk 0:00:55.1]} 41... bxc4 {[%clk 0:01:06.7]} 42. bxc4 {[%clk 0:00:56]}
42... Kc5 {[%clk 0:01:07]} 43. cxd5 {[%clk 0:00:55.7]} 43... exd5 {[%clk
0:01:07.3]} 44. Bb3 {[%clk 0:00:56.3]} 44... d4+ {[%clk 0:01:06]} 45. Ke4 {[%clk
0:00:52.3]} 45... Rd6 {[%clk 0:01:05.7]} 46. Rc1+ {[%clk 0:00:48.9]} 46... Kb6
{[%clk 0:01:04.2]} 47. Bd5 {[%clk 0:00:44.2]} 47... Nb4 {[%clk 0:01:01.5]} 48.
Bc4 {[%clk 0:00:32.8]} 48... d3 {[%clk 0:01:00]} 49. a3 {[%clk 0:00:30.3]} 49...
d2 {[%clk 0:00:58.4]} 50. Rd1 {[%clk 0:00:28.3]} 50... Nc2 {[%clk 0:00:55.2]}
51. Bd3 {[%clk 0:00:21]} 51... Ne1 {[%clk 0:00:51.3]} 52. Rxd2 {[%clk
0:00:20.3]} 52... Kc5 {[%clk 0:00:49.6]} 53. Ke3 {[%clk 0:00:16.8]} 53... a5
{[%clk 0:00:48.2]} 54. Bf1 {[%clk 0:00:16.2]} 54... Re6+ {[%clk 0:00:44.4]} 55.
Kf2 {[%clk 0:00:16.4]} 55... Re5 {[%clk 0:00:39.6]} 56. Be2 {[%clk 0:00:16.5]}
56... Nxg2 {[%clk 0:00:35.9]} 57. Kxg2 {[%clk 0:00:16.4]} 57... Rxh5 {[%clk
0:00:36.6]} 58. f4 {[%clk 0:00:14.4]} 58... Rf5 {[%clk 0:00:35.9]} 59. Kg3
{[%clk 0:00:14.6]} 59... g5 {[%clk 0:00:36.1]} 60. fxg5 {[%clk 0:00:14.8]} 60...
hxg5 {[%clk 0:00:36]} 61. a4 {[%clk 0:00:13.1]} 61... Rf4 {[%clk 0:00:35.5]} 62.
Bb5 {[%clk 0:00:13.3]} 62... Rb4 {[%clk 0:00:34.3]} 63. Rc2+ {[%clk 0:00:12.9]}
63... Kd4 {[%clk 0:00:34]} 64. Rc8 {[%clk 0:00:12.1]} 64... Ke3 {[%clk
0:00:32.6]} 65. Rg8 {[%clk 0:00:10.6]} 65... Ke4 {[%clk 0:00:31.1]} 66. Rxg5
{[%clk 0:00:10.5]} 66... Rb3+ {[%clk 0:00:31.4]} 67. Kg4 {[%clk 0:00:10.6]}
67... Kd4 {[%clk 0:00:29.8]} 68. Bc6 {[%clk 0:00:09.2]} 68... Kc3 {[%clk
0:00:28.4]} 69. Rxa5 {[%clk 0:00:08.4]} 69... Rb4+ {[%clk 0:00:27.3]} 70. Kf5
{[%clk 0:00:07.9]} 70... Rb6 {[%clk 0:00:27.2]} 71. Bb5 {[%clk 0:00:07.8]} 71...
Kb4 {[%clk 0:00:27.3]} 72. Ra8 {[%clk 0:00:08.3]} 1-0

[Event "Early-Titled-Tuesday-Blitz-April-16-2024"]
[Site "Chess.com"]
[Date "2024.04.16"]
[Round "9"]
[White "Cheer_Down"]
[Black "HajiyevKanan"]
[Result "1-0"]
[WhiteElo "2519"]
[BlackElo "2617"]
[TimeControl "180+1"]
[EndTime "9:50:08 PDT"]
[Termination "Cheer_Down won by resignation"]

1. e4 {[%clk 0:03:00.9]} 1... c6 {[%clk 0:02:54.9]} 2. d4 {[%clk 0:03:00.2]}
2... d5 {[%clk 0:02:55.8]} 3. e5 {[%clk 0:03:00.3]} 3... a6 {[%clk 0:02:55.6]}
4. c4 {[%clk 0:02:56]} 4... Bf5 {[%clk 0:02:54.3]} 5. Nc3 {[%clk 0:02:55.5]}
5... e6 {[%clk 0:02:53.6]} 6. c5 {[%clk 0:02:48.9]} 6... f6 {[%clk 0:02:50.7]}
7. f4 {[%clk 0:02:47]} 7... a5 {[%clk 0:02:50.9]} 8. Bd3 {[%clk 0:02:44.2]} 8...
Nh6 {[%clk 0:02:49.2]} 9. Nf3 {[%clk 0:02:38.4]} 9... b6 {[%clk 0:02:48.9]} 10.
cxb6 {[%clk 0:02:34.6]} 10... Qxb6 {[%clk 0:02:49.4]} 11. O-O {[%clk 0:02:32.9]}
11... Nd7 {[%clk 0:02:38]} 12. Kh1 {[%clk 0:02:32.5]} 12... Be7 {[%clk 0:02:32]}
13. Bxf5 {[%clk 0:02:16.8]} 13... Nxf5 {[%clk 0:02:30.7]} 14. g4 {[%clk
0:02:14.5]} 14... Nh6 {[%clk 0:02:24.4]} 15. h3 {[%clk 0:02:14.8]} 15... f5
{[%clk 0:02:21.1]} 16. Ng5 {[%clk 0:02:10.3]} 16... c5 {[%clk 0:02:10.5]} 17.
Be3 {[%clk 0:01:50.6]} 17... c4 {[%clk 0:01:56.4]} 18. b3 {[%clk 0:01:30.3]}
18... cxb3 {[%clk 0:01:56.1]} 19. Rb1 {[%clk 0:01:24.4]} 19... a4 {[%clk
0:01:55.1]} 20. axb3 {[%clk 0:01:24]} 20... a3 {[%clk 0:01:55.7]} 21. b4 {[%clk
0:01:11.3]} 21... O-O {[%clk 0:01:49.9]} 22. Na4 {[%clk 0:01:06.3]} 22... Qc6
{[%clk 0:01:38.1]} 23. Nc5 {[%clk 0:01:04.9]} 23... a2 {[%clk 0:01:30.5]} 24.
Ra1 {[%clk 0:01:02.5]} 24... Nxc5 {[%clk 0:01:07.9]} 25. bxc5 {[%clk 0:01:02]}
25... Ra3 {[%clk 0:01:00.4]} 26. Qc1 {[%clk 0:00:38]} 26... Rd3 {[%clk
0:00:41.6]} 27. Rd1 {[%clk 0:00:35.1]} 27... Qa6 {[%clk 0:00:21.1]} 28. Rxd3
{[%clk 0:00:29.8]} 28... Qxd3 {[%clk 0:00:21.3]} 29. Qd2 {[%clk 0:00:29.4]}
29... Qxd2 {[%clk 0:00:13.2]} 30. Bxd2 {[%clk 0:00:29.5]} 30... fxg4 {[%clk
0:00:12.7]} 31. hxg4 {[%clk 0:00:26.9]} 31... Bxg5 {[%clk 0:00:11.9]} 32. fxg5
{[%clk 0:00:26.1]} 32... Nxg4 {[%clk 0:00:12.8]} 33. Rxa2 {[%clk 0:00:25.7]}
33... Rf2 {[%clk 0:00:13.1]} 34. c6 {[%clk 0:00:23.9]} 34... Rf8 {[%clk
0:00:06.2]} 35. c7 {[%clk 0:00:20.1]} 35... Rc8 {[%clk 0:00:06.1]} 36. Ba5
{[%clk 0:00:20.8]} 36... Kf7 {[%clk 0:00:06.2]} 37. Rb2 {[%clk 0:00:21.4]} 37...
Ke8 {[%clk 0:00:06.7]} 38. Rb6 {[%clk 0:00:20.4]} 38... Kd7 {[%clk 0:00:06.9]}
39. Rd6+ {[%clk 0:00:20.3]} 39... Ke7 {[%clk 0:00:05.9]} 40. Rd8 {[%clk
0:00:20.7]} 40... Rxc7 {[%clk 0:00:05.1]} 41. Bxc7 {[%clk 0:00:20.4]} 41... Nf2+
{[%clk 0:00:04.8]} 42. Kg2 {[%clk 0:00:20]} 42... Ne4 {[%clk 0:00:05.7]} 43. Rg8
{[%clk 0:00:18.1]} 43... Kf7 {[%clk 0:00:05.4]} 44. Ra8 {[%clk 0:00:17.8]} 44...
Nxg5 {[%clk 0:00:06]} 45. Ra7 {[%clk 0:00:17.2]} 45... Ne4 {[%clk 0:00:05.8]}
46. Bd6+ {[%clk 0:00:16.2]} 46... Kg6 {[%clk 0:00:06.4]} 47. Bf8 {[%clk
0:00:16.6]} 47... h5 {[%clk 0:00:05.3]} 48. Rxg7+ {[%clk 0:00:15.7]} 48... Kf5
{[%clk 0:00:06.2]} 49. Rh7 {[%clk 0:00:15.3]} 49... Kg4 {[%clk 0:00:05.3]} 50.
Rg7+ {[%clk 0:00:14.8]} 50... Kf4 {[%clk 0:00:05.7]} 51. Be7 {[%clk 0:00:13.9]}
51... Ke3 {[%clk 0:00:05.8]} 52. Bc5 {[%clk 0:00:13.8]} 52... Kf4 {[%clk
0:00:04.2]} 53. Rf7+ {[%clk 0:00:13]} 53... Kg5 {[%clk 0:00:04.4]} 54. Re7
{[%clk 0:00:12.5]} 54... Kf5 {[%clk 0:00:04.5]} 55. Ra7 {[%clk 0:00:11.7]} 55...
Ng5 {[%clk 0:00:01.9]} 56. Kg3 {[%clk 0:00:11]} 56... Ne4+ {[%clk 0:00:02.4]}
57. Kh4 {[%clk 0:00:11.1]} 57... Kg6 {[%clk 0:00:02.6]} 58. Ra6 {[%clk
0:00:10.7]} 58... Kf5 {[%clk 0:00:01.5]} 59. Kxh5 {[%clk 0:00:09.7]} 59... Ng3+
{[%clk 0:00:02.2]} 60. Kh6 {[%clk 0:00:09.8]} 60... Ne4 {[%clk 0:00:02.9]} 61.
Kg7 {[%clk 0:00:10]} 61... Nc3 {[%clk 0:00:03.7]} 62. Kf7 {[%clk 0:00:09.5]}
62... Ne2 {[%clk 0:00:04.4]} 63. Ke7 {[%clk 0:00:08.6]} 63... Nf4 {[%clk
0:00:05.1]} 64. Kd6 {[%clk 0:00:08.3]} 64... Ng6 {[%clk 0:00:05.3]} 65. Ra8
{[%clk 0:00:08.2]} 65... Nf4 {[%clk 0:00:05.9]} 66. Rf8+ {[%clk 0:00:08.2]}
66... Ke4 {[%clk 0:00:06.3]} 67. Rxf4+ {[%clk 0:00:09.1]} 67... Kxf4 {[%clk
0:00:06.8]} 68. Kxe6 {[%clk 0:00:10]} 1-0

[Event "Early-Titled-Tuesday-Blitz-April-16-2024"]
[Site "Chess.com"]
[Date "2024.04.16"]
[Round "9"]
[White "Levanzovsky"]
[Black "VacheH009"]
[Result "1-0"]
[WhiteElo "2511"]
[BlackElo "2609"]
[TimeControl "180+1"]
[EndTime "9:50:09 PDT"]
[Termination "Levanzovsky won by checkmate"]

1. e4 {[%clk 0:03:00.9]} 1... e6 {[%clk 0:02:58.4]} 2. d3 {[%clk 0:02:58]} 2...
d5 {[%clk 0:02:56.9]} 3. Nd2 {[%clk 0:02:58.9]} 3... c5 {[%clk 0:02:54.3]} 4. g3
{[%clk 0:02:59.2]} 4... Nc6 {[%clk 0:02:54.8]} 5. Bg2 {[%clk 0:02:59.5]} 5... g6
{[%clk 0:02:54.9]} 6. f4 {[%clk 0:02:59.9]} 6... Bg7 {[%clk 0:02:53.8]} 7. Ne2
{[%clk 0:02:59.2]} 7... Nge7 {[%clk 0:02:51.8]} 8. O-O {[%clk 0:02:59.4]} 8...
O-O {[%clk 0:02:51.2]} 9. c3 {[%clk 0:03:00]} 9... d4 {[%clk 0:02:38.8]} 10. c4
{[%clk 0:02:57.7]} 10... f5 {[%clk 0:02:19.4]} 11. e5 {[%clk 0:02:53.9]} 11...
a6 {[%clk 0:02:16.7]} 12. a3 {[%clk 0:02:52.6]} 12... Rb8 {[%clk 0:02:14.9]} 13.
b4 {[%clk 0:02:52.8]} 13... cxb4 {[%clk 0:02:11.9]} 14. axb4 {[%clk 0:02:53.7]}
14... Nxb4 {[%clk 0:02:12]} 15. Nb3 {[%clk 0:02:52.9]} 15... Nec6 {[%clk
0:02:07.1]} 16. Ba3 {[%clk 0:02:52.6]} 16... Re8 {[%clk 0:02:05.1]} 17. Bxb4
{[%clk 0:02:02.6]} 17... Nxb4 {[%clk 0:02:02.8]} 18. Nexd4 {[%clk 0:01:57.1]}
18... Bf8 {[%clk 0:01:59.3]} 19. Kh1 {[%clk 0:01:57.4]} 19... b5 {[%clk
0:01:41.6]} 20. cxb5 {[%clk 0:01:46.4]} 20... axb5 {[%clk 0:01:42.5]} 21. Ra7
{[%clk 0:01:36.1]} 21... Qb6 {[%clk 0:01:23.1]} 22. Qa1 {[%clk 0:01:27.4]} 22...
Bb7 {[%clk 0:01:21.3]} 23. Bxb7 {[%clk 0:01:18.4]} 23... Rxb7 {[%clk 0:01:22.2]}
24. Ra8 {[%clk 0:01:15.8]} 24... Rbb8 {[%clk 0:01:03.9]} 25. Rxb8 {[%clk
0:01:14.5]} 25... Rxb8 {[%clk 0:01:02.3]} 26. Qd1 {[%clk 0:01:08.5]} 26... Qb7+
{[%clk 0:01:00.1]} 27. Qf3 {[%clk 0:01:08.5]} 27... Kf7 {[%clk 0:00:53.1]} 28.
Kg2 {[%clk 0:01:06.9]} 28... Nxd3 {[%clk 0:00:49.8]} 29. Qxb7+ {[%clk
0:01:02.2]} 29... Rxb7 {[%clk 0:00:50.7]} 30. Kf3 {[%clk 0:01:00.8]} 30... b4
{[%clk 0:00:45.7]} 31. Ra1 {[%clk 0:01:00.3]} 31... Nc5 {[%clk 0:00:44.5]} 32.
Nxc5 {[%clk 0:00:47.5]} 32... Bxc5 {[%clk 0:00:45.4]} 33. Nb3 {[%clk 0:00:48.3]}
33... Be7 {[%clk 0:00:43.4]} 34. Ke2 {[%clk 0:00:41.7]} 34... Rc7 {[%clk
0:00:41]} 35. Rc1 {[%clk 0:00:41.8]} 35... Rxc1 {[%clk 0:00:31]} 36. Nxc1 {[%clk
0:00:41.5]} 36... Ke8 {[%clk 0:00:29.9]} 37. Kd3 {[%clk 0:00:41.7]} 37... Kd7
{[%clk 0:00:26.7]} 38. Kc4 {[%clk 0:00:41.8]} 38... g5 {[%clk 0:00:26]} 39. Nd3
{[%clk 0:00:27.3]} 39... g4 {[%clk 0:00:21.8]} 40. Nxb4 {[%clk 0:00:25.7]} 40...
Bd8 {[%clk 0:00:07.7]} 41. Kb5 {[%clk 0:00:20.1]} 41... Be7 {[%clk 0:00:07.8]}
42. Nd3 {[%clk 0:00:17.7]} 42... Ba3 {[%clk 0:00:06.3]} 43. Ka4 {[%clk
0:00:16.8]} 43... Be7 {[%clk 0:00:04.5]} 44. Kb5 {[%clk 0:00:17]} 44... Ba3
{[%clk 0:00:01.3]} 45. Nf2 {[%clk 0:00:17.5]} 45... Be7 {[%clk 0:00:01.4]} 46.
h3 {[%clk 0:00:16.4]} 46... h5 {[%clk 0:00:02.1]} 47. hxg4 {[%clk 0:00:12.5]}
47... hxg4 {[%clk 0:00:03]} 48. Nd3 {[%clk 0:00:12.4]} 48... Ba3 {[%clk
0:00:03.7]} 49. Kb6 {[%clk 0:00:11.9]} 49... Ke7 {[%clk 0:00:03]} 50. Nc5 {[%clk
0:00:10.9]} 50... Bb4 {[%clk 0:00:01.5]} 51. Nd3 {[%clk 0:00:08.5]} 51... Bd2
{[%clk 0:00:02.1]} 52. Kc6 {[%clk 0:00:08.3]} 52... Be3 {[%clk 0:00:02.6]} 53.
Kc7 {[%clk 0:00:07.2]} 53... Bg1 {[%clk 0:00:02.8]} 54. Nc1 {[%clk 0:00:05.5]}
54... Bh2 {[%clk 0:00:03]} 55. Ne2 {[%clk 0:00:05.7]} 55... Ke8 {[%clk
0:00:01.2]} 56. Kd6 {[%clk 0:00:05.2]} 56... Kf7 {[%clk 0:00:01.8]} 57. Kd7
{[%clk 0:00:05.6]} 57... Kg7 {[%clk 0:00:01.4]} 58. Kxe6 {[%clk 0:00:05.9]}
58... Kg6 {[%clk 0:00:02.3]} 59. Kd7 {[%clk 0:00:04.5]} 59... Kh5 {[%clk
0:00:02.5]} 60. e6 {[%clk 0:00:04.1]} 60... Bxg3 {[%clk 0:00:03.4]} 61. Nxg3+
{[%clk 0:00:03.8]} 61... Kh4 {[%clk 0:00:04.3]} 62. Nxf5+ {[%clk 0:00:04.4]}
62... Kh3 {[%clk 0:00:04.4]} 63. e7 {[%clk 0:00:04.8]} 63... g3 {[%clk
0:00:04.8]} 64. e8=Q {[%clk 0:00:04.2]} 64... g2 {[%clk 0:00:04.7]} 65. Qh5#
{[%clk 0:00:04.8]} 1-0

[Event "Early-Titled-Tuesday-Blitz-April-16-2024"]
[Site "Chess.com"]
[Date "2024.04.16"]
[Round "9"]
[White "kyuotbi"]
[Black "N_I_Chess"]
[Result "0-1"]
[WhiteElo "2265"]
[BlackElo "2383"]
[TimeControl "180+1"]
[EndTime "9:50:20 PDT"]
[Termination "N_I_Chess won by resignation"]

1. e4 {[%clk 0:03:00.9]} 1... Nf6 {[%clk 0:02:44.4]} 2. e5 {[%clk 0:03:00.5]}
2... Nd5 {[%clk 0:02:43.2]} 3. d4 {[%clk 0:03:01.1]} 3... d6 {[%clk 0:02:41]} 4.
Nf3 {[%clk 0:03:01.2]} 4... g6 {[%clk 0:02:39.2]} 5. Be2 {[%clk 0:03:00.7]} 5...
Bg7 {[%clk 0:02:39.5]} 6. O-O {[%clk 0:02:59.5]} 6... O-O {[%clk 0:02:39.3]} 7.
c4 {[%clk 0:02:59]} 7... Nb6 {[%clk 0:02:39.1]} 8. exd6 {[%clk 0:02:59.4]} 8...
cxd6 {[%clk 0:02:40]} 9. Nc3 {[%clk 0:02:59.4]} 9... Bg4 {[%clk 0:02:38]} 10. b3
{[%clk 0:02:58.8]} 10... d5 {[%clk 0:02:35.7]} 11. c5 {[%clk 0:02:55]} 11... Nc8
{[%clk 0:02:34.9]} 12. Ne5 {[%clk 0:02:50.9]} 12... Bxe2 {[%clk 0:02:33.9]} 13.
Qxe2 {[%clk 0:02:51.3]} 13... Nc6 {[%clk 0:02:34.2]} 14. Nxc6 {[%clk 0:02:47.1]}
14... bxc6 {[%clk 0:02:31.6]} 15. Rd1 {[%clk 0:02:42.8]} 15... Re8 {[%clk
0:02:16.7]} 16. Bg5 {[%clk 0:02:41]} 16... Qa5 {[%clk 0:02:01.6]} 17. Na4 {[%clk
0:02:35]} 17... e5 {[%clk 0:01:59]} 18. f4 {[%clk 0:02:25.7]} 18... e4 {[%clk
0:01:53.7]} 19. f5 {[%clk 0:02:24]} 19... gxf5 {[%clk 0:01:45.5]} 20. Be3 {[%clk
0:02:21.7]} 20... Ne7 {[%clk 0:01:38.4]} 21. Qh5 {[%clk 0:02:17.6]} 21... Qc7
{[%clk 0:01:32.8]} 22. Rf1 {[%clk 0:02:15.5]} 22... Qd7 {[%clk 0:01:32.5]} 23.
g4 {[%clk 0:02:10.1]} 23... f4 {[%clk 0:01:25.9]} 24. Rxf4 {[%clk 0:02:08.1]}
24... Ng6 {[%clk 0:01:24.8]} 25. Rf5 {[%clk 0:02:08.1]} 25... Rab8 {[%clk
0:01:18.2]} 26. Raf1 {[%clk 0:02:06.4]} 26... Rf8 {[%clk 0:01:09]} 27. Nc3
{[%clk 0:02:05.1]} 27... Rb4 {[%clk 0:01:01.9]} 28. Ne2 {[%clk 0:02:04.2]} 28...
a5 {[%clk 0:01:01.9]} 29. h4 {[%clk 0:01:59.1]} 29... a4 {[%clk 0:00:57.6]} 30.
bxa4 {[%clk 0:01:52.4]} 30... Rxa4 {[%clk 0:00:57.5]} 31. Qg5 {[%clk 0:01:45]}
31... Rxa2 {[%clk 0:00:47.9]} 32. Ng3 {[%clk 0:01:37.7]} 32... Qc7 {[%clk
0:00:29.3]} 33. Bf4 {[%clk 0:01:25.8]} 33... Qe7 {[%clk 0:00:16.9]} 34. Bd6
{[%clk 0:01:15.6]} 34... Qxg5 {[%clk 0:00:16.1]} 35. hxg5 {[%clk 0:01:14.6]}
35... Bxd4+ {[%clk 0:00:16.1]} 36. Kh1 {[%clk 0:01:14.2]} 36... Raa8 {[%clk
0:00:14.6]} 37. Bxf8 {[%clk 0:01:12.2]} 37... Rxf8 {[%clk 0:00:15.5]} 38. Nh5
{[%clk 0:01:10.8]} 38... e3 {[%clk 0:00:12.7]} 39. Nf6+ {[%clk 0:01:10.6]} 39...
Kg7 {[%clk 0:00:09.6]} 40. Nd7 {[%clk 0:01:09.3]} 40... Re8 {[%clk 0:00:05.7]}
41. Rxf7+ {[%clk 0:01:08.5]} 41... Kg8 {[%clk 0:00:06.3]} 42. R7f3 {[%clk
0:00:54.3]} 42... e2 {[%clk 0:00:06.1]} 43. Re1 {[%clk 0:00:54.6]} 43... Re7
{[%clk 0:00:06]} 44. Nf6+ {[%clk 0:00:52.5]} 44... Kg7 {[%clk 0:00:06.2]} 45.
Nh5+ {[%clk 0:00:52.3]} 45... Kg8 {[%clk 0:00:06.3]} 46. Nf6+ {[%clk 0:00:48.6]}
46... Kg7 {[%clk 0:00:05.7]} 47. Nh5+ {[%clk 0:00:37.3]} 47... Kh8 {[%clk
0:00:05]} 48. Rd3 {[%clk 0:00:24.8]} 48... Bxc5 {[%clk 0:00:04.5]} 49. Rd2
{[%clk 0:00:24.8]} 49... Bb4 {[%clk 0:00:03.2]} 50. Rdxe2 {[%clk 0:00:25]} 50...
Bxe1 {[%clk 0:00:04.1]} 51. Rxe7 {[%clk 0:00:22.1]} 51... Nxe7 {[%clk 0:00:05]}
52. Kg2 {[%clk 0:00:21.2]} 52... Bd2 {[%clk 0:00:04.9]} 53. Kf3 {[%clk
0:00:19.9]} 53... Bxg5 {[%clk 0:00:05.4]} 54. Ng3 {[%clk 0:00:18.7]} 54... h6
{[%clk 0:00:06]} 55. Ne2 {[%clk 0:00:18.1]} 55... Kg7 {[%clk 0:00:06.3]} 56. Nd4
{[%clk 0:00:18.2]} 56... Kf7 {[%clk 0:00:05.5]} 57. Ke2 {[%clk 0:00:17.8]} 57...
c5 {[%clk 0:00:05.7]} 58. Nb5 {[%clk 0:00:16]} 58... Ke6 {[%clk 0:00:05.2]} 59.
Nc7+ {[%clk 0:00:15.6]} 59... Ke5 {[%clk 0:00:05.7]} 60. Kd3 {[%clk 0:00:14.7]}
60... Kf4 {[%clk 0:00:05.9]} 0-1